fUSD/lending_fUSD_20251027
["ID","MTS","AMOUNT","RATE_DAILY","PERIOD"]
[392496070,1761568242747,-151.0,0.00035434,2]
[392496071,1761568242756,-500.0,0.00035434,2]
[392496072,1761568242766,-250.0,0.00035434,2]
[392496073,1761568242775,-151.0,0.00035434,2]
[392496074,1761568242785,-500.0,0.00035434,2]
[392496075,1761568242794,-151.0,0.00035434,2]
[392496076,1761568242804,-250.0,0.00035434,2]
[392496077,1761568242813,-500.0,0.00035434,2]
[392496078,1761568242822,-151.0,0.00035434,2]
[392496079,1761568242831,-250.0,0.00035434,2]
[392496080,1761568242841,-574.12855637,0.00035434,2]
[392496081,1761568242851,-500.0,0.00035434,2]
[392496082,1761568242861,-250.0,0.00035434,2]
[392496083,1761568242871,-151.0,0.00035434,2]
[392496084,1761568242881,-151.0,0.00035434,2]
[392496085,1761568242890,-250.0,0.00035434,2]
[392496086,1761568242900,-250.0,0.00035434,2]
[392496087,1761568242909,-250.0,0.00035434,2]
[392496088,1761568242919,-250.0,0.00035434,2]
[392496089,1761568242928,-250.0,0.00035434,2]
[392496090,1761568242942,-151.0,0.00035434,2]
[392496091,1761568242952,-151.0,0.00035434,2]
[392496093,1761568242961,-151.0,0.00035434,2]
[392496095,1761568242973,-151.0,0.00035434,2]
[392496097,1761568242983,-151.0,0.00035434,2]
[392496099,1761568242992,-151.0,0.00035434,2]
[392496100,1761568243002,-151.0,0.00035434,2]
[392496101,1761568243011,-151.0,0.00035434,2]
[392496102,1761568243021,-500.0,0.00035434,2]
[392496103,1761568243030,-151.0,0.00035434,2]
[392496104,1761568243040,-151.0,0.00035434,2]
[392496105,1761568243050,-500.0,0.00035434,2]
[392496106,1761568243060,-151.0,0.00035434,2]
[392496108,1761568243070,-151.0,0.00035434,2]
[392496109,1761568243079,-500.0,0.00035434,2]
[392496110,1761568243089,-500.0,0.00035434,2]
[392496111,1761568243099,-151.0,0.00035434,2]
[392496112,1761568243112,-500.0,0.00035434,2]
[392496113,1761568243122,-500.0,0.00035434,2]
[392496114,1761568243136,-151.0,0.00035434,2]
[392496115,1761568243147,-500.0,0.00035434,2]
[392496116,1761568243157,-500.0,0.00035434,2]
[392496117,1761568243166,-500.0,0.00035434,2]
[392496118,1761568243178,-500.0,0.00035434,2]
[392496119,1761568243187,-151.0,0.00035434,2]
[392496120,1761568243197,-500.0,0.00035434,2]
[392496121,1761568243206,-500.0,0.00035434,2]
[392496122,1761568243216,-500.0,0.00035434,2]
[392496123,1761568243226,-151.0,0.00035434,2]
[392496124,1761568243236,-500.0,0.00035434,2]
[392496125,1761568243246,-500.0,0.00035434,2]
[392496126,1761568243255,-250.0,0.00035434,2]
[392496127,1761568243389,-469.07986411,0.00035434,2]
[392496128,1761568243399,-151.0,0.00035434,2]
[392496129,1761568243408,-500.0,0.00035434,2]
[392496130,1761568243419,-500.0,0.00035434,2]
[392496131,1761568243428,-250.0,0.00035434,2]
[392496132,1761568243438,-151.0,0.00035434,2]
[392496133,1761568243447,-500.0,0.00035434,2]
[392496134,1761568243456,-500.0,0.00035434,2]
[392496135,1761568243466,-151.0,0.00035434,2]
[392496136,1761568243476,-151.0,0.00035434,2]
[392496137,1761568243486,-250.0,0.00035434,2]
[392496138,1761568243495,-500.0,0.00035434,2]
[392496139,1761568243504,-500.0,0.00035434,2]
[392496140,1761568243513,-151.0,0.00035434,2]
[392496141,1761568243523,-151.0,0.00035434,2]
[392496142,1761568243533,-500.0,0.00035434,2]
[392496143,1761568243543,-500.0,0.00035434,2]
[392496144,1761568243552,-250.0,0.00035434,2]
[392496145,1761568243562,-151.0,0.00035434,2]
[392496146,1761568243571,-151.0,0.00035434,2]
[392496147,1761568243580,-500.0,0.00035434,2]
[392496148,1761568243589,-500.0,0.00035434,2]
[392496149,1761568243599,-250.0,0.00035434,2]
[392496150,1761568243610,-151.0,0.00035434,2]
[392496151,1761568243619,-151.0,0.00035434,2]
[392496152,1761568243629,-500.0,0.00035434,2]
[392496153,1761568243639,-250.0,0.00035434,2]
[392496154,1761568243649,-500.0,0.00035434,2]
[392496155,1761568243659,-151.0,0.00035434,2]
[392496156,1761568243668,-151.0,0.00035434,2]
[392496157,1761568243678,-500.0,0.00035434,2]
[392496158,1761568243687,-250.0,0.00035434,2]
[392496159,1761568243696,-151.0,0.00035434,2]
[392496160,1761568243705,-151.0,0.00035434,2]
[392496161,1761568243714,-250.0,0.00035434,2]
[392496162,1761568243729,-500.0,0.00035434,2]
[392496163,1761568243738,-151.0,0.00035434,2]
[392496164,1761568243747,-151.0,0.00035434,2]
[392496165,1761568243756,-250.0,0.00035434,2]
[392496166,1761568243766,-151.0,0.00035434,2]
[392496167,1761568243775,-151.0,0.00035434,2]
[392496168,1761568243785,-397.55468853,0.00035434,2]
[392496169,1761568243794,-151.0,0.00035434,2]
[392496170,1761568243804,-151.0,0.00035434,2]
[392496171,1761568243813,-151.0,0.00035434,2]
[392496172,1761568243822,-151.0,0.00035434,2]
[392496173,1761568243832,-166.66,0.00035609,30]
[392496174,1761568243841,-345.39,0.00035632,2]
[392496175,1761568243850,-500.0,0.00035718,2]
[392496176,1761568243861,-500.0,0.00035718,2]
[392496177,1761568243871,-500.0,0.00035718,2]
[392496178,1761568243880,-500.0,0.00035948,5]
[392496179,1761568243889,-595.37131296,0.00035982,2]
[392496180,1761568243898,-152.0,0.00036,30]
[392496181,1761568243907,-3784.67,0.00036,2]
[392496182,1761568243917,-2193.0,0.00036,2]
[392496183,1761568243926,-500.0,0.00036129,2]
[392496184,1761568243935,-500.0,0.00036129,2]
[392496185,1761568243944,-500.0,0.00036129,2]
[392496186,1761568243953,-550.5,0.00036197,30]
[392496187,1761568243963,-271.6,0.00036199,2]
[392496188,1761568243972,-1087.12879184,0.00036229,8]
[392496189,1761568243981,-151.0,0.00036261,31]
[392496190,1761568243990,-151.0,0.00036261,31]
[392496191,1761568243999,-283.321397,0.00036261,31]
[392496192,1761568244008,-519.866581,0.00036261,31]
[392496193,1761568244017,-519.866581,0.00036261,31]
[392496194,1761568244026,-151.0,0.00036261,31]
[392496195,1761568244036,-230.389259,0.00036261,31]
[392496196,1761568244045,-151.0,0.00036261,31]
[392496197,1761568244054,-519.866581,0.00036261,31]
[392496198,1761568244063,-230.389259,0.00036261,31]
[392496199,1761568244072,-519.866581,0.00036261,31]
[392496200,1761568244081,-151.0,0.00036261,31]
[392496201,1761568244090,-230.389259,0.00036261,31]
[392496202,1761568244099,-230.389259,0.00036261,31]
[392496203,1761568244109,-151.0,0.00036261,31]
[392496204,1761568244119,-482.085495,0.00036261,31]
[392496205,1761568244128,-151.0,0.00036261,31]
[392496206,1761568244137,-482.085495,0.00036261,31]
[392496207,1761568244147,-151.0,0.00036261,31]
[392496208,1761568244156,-482.085495,0.00036261,31]
[392496209,1761568244165,-482.085495,0.00036261,31]
[392496210,1761568244175,-151.0,0.00036261,31]
[392496211,1761568244184,-154.457548,0.00036261,31]
[392496212,1761568244193,-172.443963,0.00036261,31]
[392496213,1761568244202,-172.443963,0.00036261,31]
[392496214,1761568244211,-172.443963,0.00036261,31]
[392496215,1761568244220,-151.0,0.00036261,31]
[392496216,1761568244231,-172.443963,0.00036261,31]
[392496217,1761568244241,-151.0,0.00036261,31]
[392496218,1761568244250,-151.0,0.00036261,31]
[392496219,1761568244259,-151.0,0.00036261,31]
[392496220,1761568244269,-151.0,0.00036261,31]
[392496221,1761568244279,-151.0,0.00036261,31]
[392496222,1761568244288,-194.705749,0.00036261,31]
[392496223,1761568244298,-151.0,0.00036261,31]
[392496224,1761568244307,-499.99,0.00036261,2]
[392496225,1761568244316,-9999.99,0.00036261,2]
[392496226,1761568244326,-354.46,0.00036261,20]
[392496227,1761568244336,-1717.02,0.00036261,2]
[392496228,1761568244346,-9999.99,0.00036261,2]
[392496229,1761568244356,-8287.89,0.00036261,2]
[392496230,1761568244366,-3579.68,0.00036261,2]
[392496231,1761568244375,-3647.8,0.00036261,2]
[392496232,1761568244385,-150.99,0.00036261,30]
[392496233,1761568244396,-24849.07,0.00036261,2]
[392496234,1761568244405,-150.99,0.00036261,2]
[392496235,1761568244414,-4717.9,0.00036261,90]
[392496236,1761568244423,-9999.99,0.00036261,2]
[392496237,1761568244432,-627.69,0.00036261,2]
[392496238,1761568244441,-999.99,0.00036261,2]
[392496239,1761568244450,-9120.51,0.00036261,2]
[392496240,1761568244459,-9999.99,0.00036261,2]
[392496241,1761568244469,-9999.99,0.00036261,2]
[392496242,1761568244479,-1587.18,0.00036261,2]
[392496243,1761568244488,-408.25963816,0.00036273,5]
[392496244,1761568244498,-500.0,0.00036273,5]
[392496245,1761568244508,-525.11752755,0.00036273,5]
[392496246,1761568244519,-315.53270343,0.00036273,5]
[392496247,1761568244528,-500.0,0.00036273,5]
[392496248,1761568244537,-500.0,0.00036273,5]
[392496249,1761568244546,-200.0,0.00036273,5]
[392496250,1761568244555,-500.0,0.00036273,5]
[392496251,1761568244565,-500.0,0.00036273,5]
[392496252,1761568244575,-345.68088519,0.00036273,5]
[392496253,1761568244584,-166.66,0.00036293,2]
[392496254,1761568244593,-677.16036098,0.0003635,2]
[392496255,1761568244602,-168.0,0.00036495,2]
[392496256,1761568244612,-166.66,0.00036499,30]
[392496257,1761568244621,-191.1779338,0.000365,120]
[392496258,1761568244631,-580.06,0.000365,30]
[392496259,1761568244640,-677.16036098,0.00036503,2]
[392496260,1761568244650,-617.40005154,0.0003653,2]
[392496261,1761568244659,-500.0,0.0003654,2]
[392496262,1761568244668,-500.0,0.0003654,2]
[392496263,1761568244677,-500.0,0.0003654,2]
[392496264,1761568244687,-1000.0,0.000366,7]
[392496265,1761568244696,-878.69,0.000366,14]
[392496266,1761568244705,-1000.0,0.000366,7]
[392496267,1761568244715,-1021.0,0.000366,7]
[392496268,1761568244729,-1000.0,0.000366,7]
[392496269,1761568244738,-1006.0,0.000366,7]
[392496270,1761568244748,-287.61899177,0.00036636,2]
[392496271,1761568244757,-677.16036098,0.00036725,2]
[392496272,1761568244767,-1600.0,0.00036729,120]
[392496273,1761568244776,-16838.43560766,0.0003675,2]
[392496274,1761568244786,-168.0,0.00036789,2]
[392496275,1761568244795,-150.0,0.000368,7]
[392496276,1761568244806,-1598.20996,0.0003682,2]
[392496277,1761568244815,-565.91116325,0.00036821,5]
[392496278,1761568244824,-506.24497269,0.00036821,5]
[392496279,1761568244833,-1000.0,0.00036821,5]
[392496280,1761568244843,-194.2881247,0.00036822,2]
[392496281,1761568244853,-1030.96831641,0.000369,2]
[392496282,1761568244862,-157.46,0.00036915,2]
[392496283,1761568244872,-1115.0,0.00036925,5]
[392496284,1761568244881,-1425.0,0.00036925,2]
[392496285,1761568244891,-1000.0,0.00036925,7]
[392496286,1761568244900,-1425.0,0.00036934,2]
[392496287,1761568244910,-1030.96831637,0.00036938,2]
[392496288,1761568244919,-279.2671,0.00036945,2]
[392496289,1761568244929,-500.0,0.00036951,2]
[392496290,1761568244938,-500.0,0.00036951,2]
[392496291,1761568244948,-500.0,0.00036951,2]
[392496292,1761568244958,-400.0,0.00036958,5]
[392496293,1761568244967,-150.0,0.00036962,7]
[392496294,1761568244976,-478.5962,0.00036967,2]
[392496295,1761568244986,-200.0,0.00036973,5]
[392496296,1761568244996,-151.58346849,0.00036973,5]
[392496297,1761568245005,-500.0,0.00036973,5]
[392496298,1761568245014,-150.0,0.00036973,5]
[392496299,1761568245023,-1030.96831637,0.00036976,2]
[392496300,1761568245032,-1425.0,0.00036984,2]
[392496301,1761568245041,-500.0,0.00036986,120]
[392496302,1761568245137,-1425.0,0.00036994,2]
[392496303,1761568245147,-11988.0248,0.00036995,2]
[392496304,1761568245156,-1000.0,0.00036995,2]
[392496305,1761568245165,-2500.0,0.00036995,2]
[392496306,1761568245174,-69549.8636364,0.00036999,2]
[392496307,1761568245183,-4786.55374672,0.00037,2]
[392496308,1761568245193,-292.535998,0.00037,60]
[392496309,1761568245202,-1425.0,0.00037,2]
[392496310,1761568245211,-23361.23565984,0.00037,30]
[392496311,1761568245220,-1425.0,0.00037005,2]
[392496312,1761568245230,-1294.45099257,0.00037009,4]
[392496313,1761568245239,-1030.96831637,0.00037015,2]
[392496314,1761568245249,-223.5135107,0.00037018,7]
[392496315,1761568245258,-1425.0,0.0003705,2]
[392496316,1761568245267,-1030.96831637,0.00037053,2]
[392496317,1761568245276,-563.74568875,0.00037056,28]
[392496318,1761568245285,-485.01767136,0.00037067,2]
[392496319,1761568245295,-500.0,0.0003707,28]
[392496320,1761568245304,-203.67869503,0.00037073,5]
[392496321,1761568245313,-1425.0,0.00037075,2]
[392496322,1761568245323,-640.24385345,0.00037078,2]
[392496324,1761568245333,-1425.0,0.00037084,2]
[392496325,1761568245343,-5000.0,0.00037085,2]
[392496326,1761568245353,-150.71,0.00037085,2]
[392496327,1761568245363,-180.50584811,0.00037085,2]
[392496328,1761568245372,-1030.96831637,0.00037091,2]
[392496329,1761568245383,-500.0,0.00037094,2]
[392496330,1761568245394,-500.0,0.00037094,28]
[392496331,1761568245404,-500.0,0.00037094,28]
[392496332,1761568245413,-193087.8941,0.00037095,2]
[392496333,1761568245422,-1000.0,0.00037095,2]
[392496334,1761568245432,-4294.00899356,0.00037095,2]
[392496335,1761568245442,-291.288609,0.00037095,31]
[392496336,1761568245451,-291.288609,0.00037095,31]
[392496337,1761568245460,-291.288609,0.00037095,31]
[392496338,1761568245469,-291.288609,0.00037095,31]
[392496339,1761568245480,-152.438981,0.00037095,31]
[392496340,1761568245490,-312.398546,0.00037095,31]
[392496341,1761568245499,-151.0,0.00037095,31]
[392496342,1761568245509,-153.28946,0.00037095,31]
[392496343,1761568245518,-312.398546,0.00037095,31]
[392496344,1761568245528,-152.621526,0.00037095,31]
[392496345,1761568245539,-161.547548,0.00037095,31]
[392496346,1761568245549,-312.398546,0.00037095,31]
[392496347,1761568245560,-151.0,0.00037095,31]
[392496348,1761568245569,-157.352261,0.00037095,31]
[392496349,1761568245578,-1572.983989,0.00037095,31]
[392496350,1761568245588,-312.398546,0.00037095,31]
[392496351,1761568245597,-1572.983989,0.00037095,31]
[392496352,1761568245607,-151.0,0.00037095,31]
[392496353,1761568245616,-151.957879,0.00037095,31]
[392496354,1761568245625,-1572.983989,0.00037095,31]
[392496355,1761568245637,-230.535301,0.00037095,31]
[392496356,1761568245646,-151.0,0.00037095,31]
[392496357,1761568245655,-151.0,0.00037095,31]
[392496358,1761568245665,-1572.983989,0.00037095,31]
[392496359,1761568245674,-151.0,0.00037095,31]
[392496360,1761568245683,-151.0,0.00037095,31]
[392496361,1761568245693,-151.0,0.00037095,31]
[392496362,1761568245703,-151.0,0.00037095,31]
[392496363,1761568245713,-152.849832,0.00037095,31]
[392496364,1761568245728,-714.499929,0.00037095,31]
[392496365,1761568245737,-153.166424,0.00037095,31]
[392496366,1761568245748,-714.499929,0.00037095,31]
[392496367,1761568245760,-714.499929,0.00037095,31]
[392496368,1761568245769,-714.499929,0.00037095,31]
[392496369,1761568245779,-1953.933918,0.00037095,30]
[392496370,1761568245788,-151.0,0.00037095,31]
[392496371,1761568245797,-1953.933918,0.00037095,30]
[392496372,1761568245807,-151.0,0.00037095,31]
[392496373,1761568245817,-1953.933918,0.00037095,30]
[392496374,1761568245827,-1953.933918,0.00037095,30]
[392496375,1761568245836,-151.0,0.00037095,31]
[392496376,1761568245845,-154.295557,0.00037095,31]
[392496377,1761568245854,-6429.79,0.000371,14]
[392496378,1761568245863,-500.0,0.00037123,120]
[392496379,1761568245872,-243.0,0.00037136,90]
[392496380,1761568245881,-243.0,0.00037136,90]
[392496381,1761568245891,-243.0,0.00037136,90]
[392496382,1761568245901,-243.0,0.00037136,90]
[392496383,1761568245911,-243.0,0.00037136,90]
[392496384,1761568245922,-243.0,0.00037136,90]
[392496385,1761568245931,-243.0,0.00037136,90]
[392496386,1761568245940,-243.0,0.00037136,90]
[392496387,1761568245949,-243.0,0.00037136,90]
[392496388,1761568245957,-243.0,0.00037136,90]
[392496389,1761568245966,-243.0,0.00037136,90]
[392496391,1761568245975,-243.0,0.00037136,90]
[392496392,1761568245984,-188.0,0.00037136,90]
[392496393,1761568245993,-188.0,0.00037136,90]
[392496394,1761568246002,-188.0,0.00037136,90]
[392496395,1761568246010,-188.0,0.00037136,90]
[392496396,1761568246019,-188.0,0.00037136,90]
[392496397,1761568246027,-188.0,0.00037136,90]
[392496398,1761568246037,-188.0,0.00037136,90]
[392496399,1761568246046,-188.0,0.00037136,90]
[392496400,1761568246055,-188.0,0.00037136,90]
[392496401,1761568246063,-188.0,0.00037136,90]
[392496402,1761568246072,-285.0,0.00037136,90]
[392496403,1761568246082,-285.0,0.00037136,90]
[392496404,1761568246090,-285.0,0.00037136,90]
[392496405,1761568246099,-285.0,0.00037136,90]
[392496406,1761568246108,-285.0,0.00037136,90]
[392496407,1761568246117,-285.0,0.00037136,90]
[392496408,1761568246126,-285.0,0.00037136,90]
[392496409,1761568246135,-285.0,0.00037136,90]
[392496410,1761568246144,-285.0,0.00037136,90]
[392496411,1761568246153,-285.0,0.00037136,90]
[392496412,1761568246163,-285.0,0.00037136,90]
[392496413,1761568246173,-285.0,0.00037136,90]
[392496414,1761568246182,-188.0,0.00037136,90]
[392496415,1761568246192,-188.0,0.00037136,90]
[392496416,1761568246201,-188.0,0.00037136,90]
[392496417,1761568246210,-188.0,0.00037136,90]
[392496418,1761568246219,-188.0,0.00037136,90]
[392496419,1761568246228,-188.0,0.00037136,90]
[392496420,1761568246237,-188.0,0.00037136,90]
[392496421,1761568246245,-188.0,0.00037136,90]
[392496422,1761568246254,-188.0,0.00037136,90]
[392496423,1761568246263,-188.0,0.00037136,90]
[392496424,1761568246273,-272.0,0.00037136,90]
[392496425,1761568246283,-272.0,0.00037136,90]
[392496426,1761568246292,-272.0,0.00037136,90]
[392496427,1761568246311,-272.0,0.00037136,90]
[392496428,1761568246322,-272.0,0.00037136,90]
[392496429,1761568246332,-272.0,0.00037136,90]
[392496430,1761568246342,-272.0,0.00037136,90]
[392496431,1761568246352,-272.0,0.00037136,90]
[392496432,1761568246361,-272.0,0.00037136,90]
[392496433,1761568246371,-272.0,0.00037136,90]
[392496434,1761568246380,-272.0,0.00037136,90]
[392496435,1761568246389,-272.0,0.00037136,90]
[392496436,1761568246399,-195.0,0.00037136,90]
[392496437,1761568246407,-195.0,0.00037136,90]
[392496438,1761568246417,-195.0,0.00037136,90]
[392496439,1761568246429,-195.0,0.00037136,90]
[392496440,1761568246438,-195.0,0.00037136,90]
[392496441,1761568246448,-195.0,0.00037136,90]
[392496442,1761568246458,-195.0,0.00037136,90]
[392496443,1761568246468,-195.0,0.00037136,90]
[392496444,1761568246479,-195.0,0.00037136,90]
[392496445,1761568246488,-195.0,0.00037136,90]
[392496446,1761568246499,-211.0,0.00037136,90]
[392496447,1761568246509,-211.0,0.00037136,90]
[392496448,1761568246518,-211.0,0.00037136,90]
[392496449,1761568246528,-211.0,0.00037136,90]
[392496450,1761568246538,-211.0,0.00037136,90]
[392496451,1761568246548,-211.0,0.00037136,90]
[392496452,1761568246558,-211.0,0.00037136,90]
[392496453,1761568246567,-211.0,0.00037136,90]
[392496454,1761568246578,-211.0,0.00037136,90]
[392496455,1761568246589,-211.0,0.00037136,90]
[392496456,1761568246598,-211.0,0.00037136,90]
[392496457,1761568246607,-211.0,0.00037136,90]
[392496458,1761568246617,-222.0,0.00037136,90]
[392496459,1761568246626,-222.0,0.00037136,90]
[392496460,1761568246635,-222.0,0.00037136,90]
[392496461,1761568246645,-222.0,0.00037136,90]
[392496462,1761568246654,-222.0,0.00037136,90]
[392496463,1761568246663,-222.0,0.00037136,90]
[392496464,1761568246672,-222.0,0.00037136,90]
[392496465,1761568246681,-222.0,0.00037136,90]
[392496466,1761568246800,-222.0,0.00037136,90]
[392496467,1761568246809,-222.0,0.00037136,90]
[392496468,1761568246819,-500.0,0.00037152,28]
[392496469,1761568246828,-1425.0,0.00037154,2]
[392496470,1761568246836,-500.0,0.00037157,2]
[392496471,1761568246845,-1000.0,0.00037162,7]
[392496472,1761568246855,-500.0,0.00037173,5]
[392496473,1761568246864,-500.0,0.00037173,5]
[392496474,1761568246873,-500.0,0.00037173,5]
[392496475,1761568246882,-500.0,0.00037173,5]
[392496476,1761568246891,-500.0,0.00037173,5]
[392496477,1761568246900,-327.50826095,0.00037173,5]
[392496478,1761568246909,-502.10628795,0.00037173,5]
[392496479,1761568246918,-501.66177155,0.00037173,5]
[392496480,1761568246927,-500.0,0.00037173,5]
[392496481,1761568246936,-609.45350235,0.00037173,120]
[392496482,1761568246945,-177.0,0.00037178,120]
[392496483,1761568246954,-1738.88043114,0.0003718,50]
[392496484,1761568246963,-500.0,0.00037184,7]
[392496485,1761568246971,-500.0,0.00037184,2]
[392496486,1761568246981,-500.0,0.00037184,28]
[392496487,1761568246989,-500.0,0.00037184,28]
[392496488,1761568246998,-594.67662468,0.00037184,120]
[392496489,1761568247007,-500.0,0.00037184,28]
[392496490,1761568247016,-500.0,0.00037184,28]
[392496491,1761568247025,-510.17,0.00037184,28]
[392496492,1761568247034,-500.0,0.00037184,28]
[392496493,1761568247043,-999.0,0.00037184,120]
[392496494,1761568247051,-433.99336788,0.00037186,2]
[392496495,1761568247060,-10000.0,0.0003719,5]
[392496496,1761568247069,-152.0,0.00037191,7]
[392496497,1761568247079,-152.0,0.00037191,7]
[392496498,1761568247088,-1303.22887885,0.00037191,7]
[392496499,1761568247097,-152.0,0.00037191,7]
[392496500,1761568247107,-300.0,0.00037191,7]
[392496501,1761568247116,-824.0,0.00037191,7]
[392496502,1761568247125,-520.00470585,0.00037192,50]
[392496503,1761568247135,-677.43752035,0.00037194,10]
[392496504,1761568247144,-151.0,0.00037194,2]
[392496505,1761568247153,-1515.43451734,0.00037194,30]
[392496506,1761568247162,-824.0,0.00037194,7]
[392496507,1761568247171,-824.0,0.00037194,7]
[392496508,1761568247181,-824.0,0.00037194,7]
[392496509,1761568247190,-848.6292097,0.00037194,7]
[392496510,1761568247198,-151.0,0.00037194,2]
[392496511,1761568247207,-500.0,0.00037194,7]
[392496512,1761568247216,-608.57263053,0.00037194,2]
[392496513,1761568247225,-1000.0,0.00037194,2]
[392496514,1761568247234,-1000.0,0.00037194,2]
[392496515,1761568247243,-1000.0,0.00037194,2]
[392496516,1761568247252,-1000.0,0.00037194,2]
[392496517,1761568247262,-1000.0,0.00037194,2]
[392496518,1761568247271,-1000.0,0.00037194,2]
[392496519,1761568247280,-1000.0,0.00037194,2]
[392496520,1761568247289,-1000.0,0.00037194,2]
[392496521,1761568247298,-1000.0,0.00037194,2]
[392496522,1761568247307,-845.09192012,0.00037194,2]
[392496523,1761568247316,-152.0,0.00037194,7]
[392496524,1761568247325,-500.0,0.00037194,28]
[392496525,1761568247335,-500.0,0.00037194,28]
[392496526,1761568247344,-500.0,0.00037194,28]
[392496527,1761568247353,-534.09559345,0.00037194,28]
[392496528,1761568247362,-526.67417626,0.00037194,28]
[392496529,1761568247372,-510.17,0.00037194,28]
[392496530,1761568247382,-510.17,0.00037194,28]
[392496531,1761568247392,-510.17,0.00037194,28]
[392496532,1761568247401,-510.17,0.00037194,28]
[392496533,1761568247411,-510.17,0.00037194,28]
[392496534,1761568247420,-510.17,0.00037194,28]
[392496535,1761568247429,-510.17,0.00037194,28]
[392496536,1761568247438,-510.17,0.00037194,28]
[392496537,1761568247447,-510.17,0.00037194,28]
[392496538,1761568247457,-510.17,0.00037194,28]
[392496539,1761568247467,-510.17,0.00037194,28]
[392496540,1761568247476,-510.17,0.00037194,28]
[392496541,1761568247485,-510.17,0.00037194,28]
[392496542,1761568247494,-510.17,0.00037194,28]
[392496543,1761568247503,-510.17,0.00037194,28]
[392496544,1761568247512,-510.17,0.00037194,28]
[392496545,1761568247521,-510.17,0.00037194,28]
[392496546,1761568247530,-510.17,0.00037194,28]
[392496547,1761568247539,-510.17,0.00037194,28]
[392496548,1761568247548,-510.17,0.00037194,28]
[392496549,1761568247558,-510.17,0.00037194,28]
[392496550,1761568247567,-510.17,0.00037194,28]
[392496551,1761568247576,-510.17296765,0.00037194,28]
[392496552,1761568247585,-500.0,0.00037194,28]
[392496553,1761568247595,-500.0,0.00037194,28]
[392496554,1761568247605,-500.0,0.00037194,28]
[392496555,1761568247615,-331.2737241,0.00037194,28]
[392496556,1761568247623,-302.0,0.00037194,7]
[392496557,1761568247632,-1109158.16131158,0.00037195,50]
[392496558,1761568247642,-2562084.98974703,0.00037195,50]
[392496559,1761568247651,-1199463.40680658,0.00037195,50]
[392496560,1761568248242,-32.40703119,0.00037195,50]
[392496561,1761568248264,-0.28808596,0.00037195,50]
[392496562,1761568248283,-2854.54184813,0.00037195,50]
[392496563,1761568248801,-476.74869043,0.000248,3]
[392496564,1761568248810,-1030.96831637,0.00037129,2]
[392496565,1761568248822,-26448.93302535,0.00037195,50]
[392496566,1761568249111,-187.18069972,0.00037195,50]
[392496567,1761568268155,-158.44955857,0.00014999,2]
[392496568,1761568271324,-219.58888082,0.00014999,2]
[392496569,1761568273530,-121.96156061,0.00014999,2]
[392496570,1761568273552,-148.49150752,0.00014999,2]
[392496571,1761568275829,-351.50849248,0.00014999,2]
[392496572,1761568275852,-16.68233934,0.00014999,2]
[392496573,1761568277373,-324.40757995,0.00014999,2]
[392496574,1761568280217,-158.91008071,0.00014999,2]
[392496575,1761568280240,-127.25382145,0.00016499,2]
[392496576,1761568298332,-170.7534871,0.00014999,2]